Cogmind - Beta 10.1 @@@ ROGUE MODE // 2020.10.16 @ 17:51:22 Player: Ischenous Result: Destroyed by L-31 Rogue with Katana Performance ------------- Evolutions (2) 1000 Regions Visited (4) 800 Robots Destroyed (35) 175 Value Destroyed (1194) 1194 Prototype IDs (1) 20 Alien Tech Used (0) 0 Bonus (187) 187 TOTAL SCORE: 3376 Bonus ------- High Alert Combat Kills 11 Follower Combat Kills 176 Cogmind --------- Core Integrity 0/550 Matter 160/300 Energy 100/100 System Corruption 0% Temperature Cool (0) Movement Core (200) Ox3 Location -8/Materials Parts ------- > --- POWER (2) -------- (None) > --- PROPULSION (3) --- (None) > --- UTILITY (4) ------ Medium Storage Unit Signal Interpreter > --- WEAPON (2) ------- Mining Claw > --- INVENTORY (8) ---- Light Nuclear Core Aluminum Leg Experimental Sensor Array Improved Targeting Computer Improved Datajack Peak State ------------ > --- POWER ------------ Improved Ion Engine Light Nuclear Core > --- PROPULSION ------- Aluminum Leg Aluminum Leg Aluminum Leg > --- UTILITY ---------- Medium Storage Unit Sensor Array Signal Interpreter Advanced Targeting Computer > --- WEAPON ----------- EM Shotgun Flak Cannon > --- INVENTORY -------- Light Nuclear Core Aluminum Leg Experimental Sensor Array Improved Targeting Computer Improved Light Cannon Improved Datajack Mining Claw [Rating: 20] Favorites ----------- Power Improved Ion Engine Engine Improved Ion Engine Power Core Light Nuclear Core Propulsion Aluminum Leg Leg Aluminum Leg Utility Medium Storage Unit Device ECM Suite Storage Medium Storage Unit Processor Signal Interpreter Weapon Light Assault Rifle Energy Gun EM Shotgun Energy Cannon Beam Cannon Ballistic Gun Light Assault Rifle Ballistic Cannon Flak Cannon Slashing Weapon Mining Claw Build | -11 -10 -10 -9 -8 ------- Run | Scr Mat Min Mat Mat Slots Evolved 4 | . . . 2 2 Power 1 | . . . 1 . Propulsion 1 | . . . . 1 Utility 2 | . . . 1 1 Weapon . | . . . . . Parts Attached 41 | 6 6 4 9 16 Power 8 | 1 1 1 1 4 Engine 6 | 1 1 1 . 3 Core 2 | . . . 1 1 Reactor . | . . . . . Propulsion 11 | 2 . 1 4 4 Treads . | . . . . . Leg 11 | 2 . 1 4 4 Wheel . | . . . . . Hover . | . . . . . Flight . | . . . . . Utility 7 | 1 2 . 2 2 Device 3 | . 1 . 2 . Storage 2 | 1 1 . . . Processor 2 | . . . . 2 Hackware . | . . . . . Protection . | . . . . . Artifact . | . . . . . Weapon 15 | 2 3 2 2 6 Energy Gun 5 | . . 1 2 2 Energy Cannon 1 | . 1 . . . Ballistic Gun 4 | 2 1 1 . . Ballistic Cannon 2 | . . . . 2 Launcher . | . . . . . Special Weapon . | . . . . . Impact Weapon . | . . . . . Slashing Weapon 3 | . 1 . . 2 Piercing Weapon . | . . . . . Special Melee Weapon . | . . . . . Unidentified Prototypes 1 | . . . 1 . Parts Lost 16 | . 2 . 1 13 Power 4 | . 1 . . 3 Propulsion 4 | . . . . 4 Utility 3 | . . . . 3 Weapon 5 | . 1 . 1 3 Highest Loss Streak 9 | . 2 . 1 9 Average Slot Usage (%) 95 | . 96 100 94 90 Engine 13 | . 14 14 11 13 Core 2 | . . . 8 2 Leg 25 | . 28 28 22 22 Device 15 | . 11 14 21 14 Storage 11 | . 14 14 11 9 Processor 3 | . . . . 11 Energy Gun 9 | . . 7 14 13 Energy Cannon 1 | . 7 . . . Ballistic Gun 8 | . 19 14 5 . Slashing Weapon 2 | . . 6 . . Naked Turns . | . . . . . Heaviest Build 31 | 11 18 19 28 31 Greatest Support 30 | 20 20 20 20 30 Greatest Overweight (x) 1 | 1 . . 1 1 Average Overweight (x) . | . . . . . Largest Inventory Capacity 8 | 6 8 8 8 8 Average Capacity 7 | 5 7 8 8 8 Most Carried 8 | 4 7 8 8 8 Average Carried 6 | 2 4 7 7 7 Final Capacity 8 | 6 8 8 8 8 Final Carried 8 | 2 7 7 8 5 Class Distribution -------------------- 66% | Mutant 33% | Scavenger-Mutant Dominant Class ---------------- Mutant | -10/Materials Mutant | -10/Mines Mutant | -9/Materials Scavenger-Mutant | -8/Materials Resources | -11 -10 -10 -9 -8 ----------- Run | Scr Mat Min Mat Mat Matter Collected 590 | 224 95 45 95 131 Remotely . | . . . . . Salvage Created 1239 | . 91 120 379 649 Parts 73 | . 12 8 28 25 Haulers Intercepted . | . . . . . Recyclers Shooed . | . . . . . Parts Field Recycled . | . . . . . Retrieved Matter . | . . . . . Parts Self-Destructed . | . . . . . Prevented . | . . . . . Kills | -11 -10 -10 -9 -8 ------- Run | Scr Mat Min Mat Mat Combat Hostiles Destroyed 31 | . 4 2 10 15 Melee 2 | . . . . 2 Guns 18 | . . 2 9 7 Cannons 8 | . 4 . . 4 AOE 3 | . . . 1 2 Classes Destroyed 6 | . 3 1 2 . Recycler 1 | . . . 1 . Operator 1 | . . . 1 . Watcher 2 | . 1 . . 1 Swarmer 7 | . 3 . 4 . Grunt 21 | . 1 . 6 14 Sentry 3 | . . 2 . 1 Best Kill Streak 5 | . 4 2 4 5 Combat Bots Only 4 | . 4 2 4 4 Max Kills in Single Turn 3 | . 1 1 3 2 Gunslinging 1 | . . . 1 . Exploded 1 | . . . 1 1 Melee 1 | . . . . 1 Uniques/NPCs Destroyed . | . . . . . Combat | -11 -10 -10 -9 -8 -------- Run | Scr Mat Min Mat Mat Damage Taken 2532 | . 321 123 429 1659 Core 723 | . 38 44 89 552 Absorbed by Shields . | . . . . . Core Remaining (%) 81 | 100 . 67 77 . Volleys Fired 92 | . 19 3 20 50 Largest 2 | . 2 2 2 2 Hottest 90 | . 80 70 90 89 Shots Fired 149 | . 29 6 40 74 Gun 110 | . 19 6 40 45 Cannon 39 | . 10 . . 29 Launcher . | . . . . . Special . | . . . . . Kinetic 51 | . 19 3 . 29 Thermal 13 | . 10 3 . . Explosive . | . . . . . Electromagnetic 85 | . . . 40 45 Robot Hit Streak 16 | . 5 9 7 16 Robot Miss Streak 6 | . 2 1 6 6 Penetration Max . | . . . . . Secondary Targets 3 | . . . 2 1 Max Gunslinging Chain 1 | . . . 1 1 Shots Hit Robots 127 | . 16 4 28 79 Core Hits 82 | . 8 4 18 52 Critical Hits 1 | . 1 . . . Critical Kills . | . . . . . Critical Parts Destroyed 1 | . 1 . . . Melee Attacks 25 | . . . . 25 Impact . | . . . . . Slashing 25 | . . . . 25 Piercing . | . . . . . Sneak Attacks . | . . . . . Combat Hostiles . | . . . . . Follow-up Attacks . | . . . . . Damage Inflicted 2748 | . 260 57 622 1809 Guns 972 | . 85 57 326 504 Cannons 752 | . 175 . . 577 Explosions 718 | . . . 296 422 Melee 306 | . . . . 306 Ramming . | . . . . . Kinetic 682 | . 85 20 . 577 Thermal 634 | . 175 37 . 422 Explosive 296 | . . . 296 . Electromagnetic 830 | . . . 326 504 Impact . | . . . . . Slashing 306 | . . . . 306 Piercing . | . . . . . Highest Corruption . | . . . . . Average Corruption . | . . . . . Corruption Purged . | . . . . . Overload Shots . | . . . . . Overflow Damage 16 | . . . . 16 Projectiles . | . . . . . Explosions 12 | . . . . 12 Melee 4 | . . . . 4 Knockbacks 31 | . . . . 31 Impact . | . . . . . Kinetic 22 | . . . . 22 Secondary 9 | . . . . 9 Self-Inflicted Damage 70 | . . . . 70 Shots 2 | . . . . 2 Rammed . | . . . . . Targets Rammed . | . . . . . Kicked . | . . . . . Crushed . | . . . . . Highest Temperature 406 | . 166 59 225 406 Average Temperature 126 | . 53 31 114 162 Received Heat Transfer 750 | . 96 36 105 513 Effects 9 | . . . . 9 Shutdowns 3 | . . . . 3 Energy Bleed 3 | . . . . 3 Interference 2 | . . . . 2 Damage (minor) 1 | . . . . 1 Siege Activations . | . . . . . Robots Corrupted . | . . . . . Combat Hostiles . | . . . . . Parts Fried 4 | . . . 2 2 Impact Corruptions . | . . . . . Robots Melted . | . . . . . Combat Hostiles . | . . . . . Parts Melted . | . . . . . Heat Transferred 981 | . 370 111 . 500 Parts Sabotaged . | . . . . . Parts Stolen . | . . . . . Parts Stripped . | . . . . . Power Chain Reactions 4 | . . . . 4 Missiles Intercepted . | . . . . . Alert | -11 -10 -10 -9 -8 ------- Run | Scr Mat Min Mat Mat Peak Influence 446 | . 118 55 302 446 Initial 104 | . . 37 . 104 Average 143 | . 56 39 133 326 Maximum Alert Level 2 | . . . 1 2 Low Security (%) 69 | 100 100 100 70 14 Level 1 23 | . . . 29 59 Level 2 7 | . . . . 25 Level 3 . | . . . . . Level 4 . | . . . . . Level 5 . | . . . . . High Security . | . . . . . Max Security . | . . . . . Squads Dispatched 9 | . 1 . 4 4 Investigation 4 | . . . 1 3 Extermination . | . . . . . Reinforcement 5 | . 1 . 3 1 Assault . | . . . . . Garrison . | . . . . . Intercept . | . . . . . Construction Impeded . | . . . . . Haulers Reinforced . | . . . . . Stealth | -11 -10 -10 -9 -8 --------- Run | Scr Mat Min Mat Mat Distress Signals 2 | . . . 1 1 Communications Jammed . | . . . . . Distress Signals . | . . . . . Times Spotted 58 | . 7 2 23 26 Peak Tracking Total 5 | . 4 2 5 5 Tactical Retreats 10 | . . . 4 6 Traps | -11 -10 -10 -9 -8 ------- Run | Scr Mat Min Mat Mat Traps Triggered . | . . . . . Indirectly . | . . . . . Trap Hack Attempts . | . . . . . Triggered . | . . . . . Disarmed . | . . . . . Reprogrammed . | . . . . . Reused . | . . . . . Traps Extracted . | . . . . . Installed . | . . . . . Triggered 1 | . . . . 1 Machines | -11 -10 -10 -9 -8 ---------- Run | Scr Mat Min Mat Mat Machines Disabled 3 | . . . 2 1 Max in Single Turn 1 | . . . 1 1 Machines Sabotaged . | . . . . . Garrisons Compromised . | . . . . . Overloaded Fab Kills . | . . . . . Fab Network Shutdowns . | . . . . . Hacking | -11 -10 -10 -9 -8 --------- Run | Scr Mat Min Mat Mat Machines Accessed 7 | . 2 . 3 2 Terminals 5 | . 2 . 3 . Fabricators . | . . . . . Repair Stations 1 | . . . . 1 Recycling Units 1 | . . . . 1 Scanalyzers . | . . . . . Garrison Access . | . . . . . Total Hacks 31 | . 10 . 8 13 Successful 22 | . 8 . 4 10 Failed 9 | . 2 . 4 3 Catastrophic . | . . . . . Database Lockouts . | . . . . . Manual 2 | . 1 . . 1 Terminals 18 | . 10 . 8 . Fabricators . | . . . . . Repair Stations 11 | . . . . 11 Recycling Units 2 | . . . . 2 Scanalyzers . | . . . . . Garrison Access . | . . . . . Terminal Hacks 12 | . 8 . 4 . Record 4 | . 3 . 1 . Alert Level 3 | . 2 . 1 . Locate Traps 2 | . 1 . 1 . Hauler Manifests 1 | . 1 . . . Zone Layout 2 | . 1 . 1 . Fabricator Hacks . | . . . . . Repair Station Hacks 8 | . . . . 8 Scan Component 4 | . . . . 4 Repair 4 | . . . . 4 Recycling Unit Hacks 1 | . . . . 1 Retrieve Components 1 | . . . . 1 Scanalyzer . | . . . . . Garrison Access Hacks . | . . . . . Unauthorized Hacks 1 | . . . . 1 Terminals . | . . . . . Fabricators . | . . . . . Repair Stations . | . . . . . Recycling Units 1 | . . . . 1 Tunnel 1 | . . . . 1 Scanalyzers . | . . . . . Garrison Access . | . . . . . Data Cores Recovered . | . . . . . Used . | . . . . . Hacking Detections 5 | . 1 . 3 1 Full Trace Events 3 | . . . 2 1 Feedback Events . | . . . . . Feedback Blocked . | . . . . . Robot Schematics Acquired . | . . . . . Robots Built . | . . . . . Matter . | . . . . . Time . | . . . . . Total Robot Build Rating . | . . . . . Part Schematics Acquired . | . . . . . Parts Built . | . . . . . Matter . | . . . . . Time . | . . . . . Total Part Build Rating . | . . . . . Parts Repaired 4 | . . . . 4 Time 170 | . . . . 170 Parts Recycled . | . . . . . Recycled Matter . | . . . . . Retrieved Matter . | . . . . . Retrieved Components . | . . . . . Parts Scanalyzed . | . . . . . Part Schematics Acquired . | . . . . . Parts Damaged . | . . . . . Bothacking | -11 -10 -10 -9 -8 ------------ Run | Scr Mat Min Mat Mat Used RIF Installer . | . . . . . Robots Hacked . | . . . . . Non-combat . | . . . . . Combat . | . . . . . Robot Hacks Applied . | . . . . . Relay Couplers Released . | . . . . . Robots Rewired . | . . . . . Allies Hacked . | . . . . . Hacks Repelled . | . . . . . Allies | -11 -10 -10 -9 -8 -------- Run | Scr Mat Min Mat Mat Total Allies 3 | . . 3 . . Largest Group 3 | . . 3 3 . Highest-Rated Group 40 | . . 40 40 . Highest-Rated Ally 16 | . . 16 16 . Total Orders . | . . . . . Ally Attacks 31 | . . . 31 . Total Damage 355 | . . . 355 . Kills 6 | . . . 6 . Allies Corrupted . | . . . . . Allies Melted . | . . . . . Intel | -11 -10 -10 -9 -8 ------- Run | Scr Mat Min Mat Mat Robot Analysis Total . | . . . . . Derelict Logs Recovered 1 | . . 1 . . Drone Launches . | . . . . . Drone Recoveries . | . . . . . Exploration | -11 -10 -10 -9 -8 ------------- Run | Scr Mat Min Mat Mat Turns Passed 2612 | 72 384 873 517 766 Spaces Moved 1519 | 59 262 674 302 222 Core 18 | 18 . . . . Treads . | . . . . . Legs 1501 | 41 262 674 302 222 Wheels . | . . . . . Hover . | . . . . . Flight . | . . . . . Fastest Speed 50 | 50 120 120 120 120 Average Speed 124 | 100 120 120 141 124 Slowest Speed 150 | 150 120 120 150 150 Overloaded Moves . | . . . . . Propulsion Burnouts . | . . . . . Robots Hopped . | . . . . . Cave-ins Triggered . | . . . . . Exploration Rate (%) 33 | 4 33 91 32 9 Regions Visited 4 Branch Regions 1 Pre-discovered Areas 1 | . . . . 1 Known Exits Taken . | . . . . . Unknown Exits Taken 4 | 1 1 1 1 . Scrap Searched 2 | . . 2 . . Spaces Dug 1 | . . . . 1 Terrain Destroyed 43 | . . . 23 20 Melee 1 | . . . . 1 Projectile . | . . . . . AOE 42 | . . . 23 19 Terrain Rammed . | . . . . . Walls Destroyed . | . . . . . Machines Disabled . | . . . . . Actions | -11 -10 -10 -9 -8 --------- Run | Scr Mat Min Mat Mat Total 2061 | 72 305 734 356 594 Wait 316 | . 9 42 8 257 Move 1515 | 58 261 673 301 222 Hop . | . . . . . Pick Up 50 | 8 9 6 11 16 Fast Attach . | . . . . . Attach 24 | 6 3 . 4 11 Detach 1 | . . . . 1 Swap 17 | . 3 4 5 5 Drop 21 | . 1 6 7 7 Fire 92 | . 19 3 20 50 Melee 25 | . . . . 25 Ram . | . . . . . Kick . | . . . . . Crush . | . . . . . Escape Stasis . | . . . . . Rewire . | . . . . . Trap . | . . . . . Miscellaneous . | . . . . . Route ------- -11/Scrapyard -10/Materials -10/Mines -9/Materials -8/Materials History --------- Turn | Location | Event 9 | -11/Scrapyard | Discovered new exit (range 16) 73 | -11/Scrapyard | Entered Materials 300 | -10/Materials | Build established: Mutant 385 | -10/Materials | Discovered new exit (range 15) 457 | -10/Materials | Entered Mines 1036 | -10/Mines | Learned Materials garrison access intel 1056 | -10/Mines | Found a damaged Exp. Sensor Array with a note attached 1059 | -10/Mines | Found Prototype Device 1163 | -10/Mines | Discovered new exit (range 3) 1221 | -10/Mines | Assisted by bots powering up and referring to "LRC-V3" 1330 | -10/Mines | Entered Materials 1330 | -9/Materials | Accompanied by 3 allies 1330 | -9/Materials | Evolved 2 slots: Power x1, Utility x1 1330 | -9/Materials | Identified Exp. Sensor Array 1778 | -9/Materials | Discovered new exit (range 16) 1847 | -9/Materials | Entered another Materials area 1847 | -8/Materials | Evolved 2 slots: Propulsion x1, Utility x1 1848 | -8/Materials | Loaded intel: 1 garrison access location 1968 | -8/Materials | Build established: Scavenger-Mutant 2176 | -8/Materials | Repaired Exp. Sensor Array 2212 | -8/Materials | Repaired EM Shotgun 2245 | -8/Materials | Repaired Imp. Ion Engine 2273 | -8/Materials | Repaired Aluminum Leg 2572 | -8/Materials | Core integrity fell below 50% 2602 | -8/Materials | Core integrity fell below 20% 2609 | -8/Materials | Lost 9 parts (2p3n2u2w) 2613 | -8/Materials | Destroyed by L-31 Rogue with Katana Last Messages --------------- 02543_ Power failure, Lgt. Nuclear Core shutdown. 02543_ G-47 Trooper knocked back. 02544_ K-01 Serf collects debris. 02548_ Overheating: System interference. 02548_ Flak Cannon temporarily disabled. 02548_ Aluminum Leg destroyed. 02551_ Imp. Light Cannon severed. 02553_ Lgt. Nuclear Core destroyed. 02554_ Power failure, Imp. Ion Engine shutdown. 02555_ G-47 Trooper destroyed. 02558_ Sensor Array destroyed. 02559_ R-06 Scavenger collects Aluminum Leg. 02562_ R-06 Scavenger collects Imp. Light Cannon. 02565_ R-06 Scavenger collects Aluminum Leg. 02566_ Flak Cannon destroyed. 02566_ Adv. Targeting Computer destroyed. 02570_ G-47 Trooper destroyed. 02571_ Acquired 41 matter. 02578_ Imp. Ion Engine destroyed. 02606_ Destroyed Imp. Aluminum Leg. Map ----- +----------------------------------------------------+ | ??????????????????????????????????????? | | ??????????????????????????????????????? | | ??????????????????????????????????????? | | ??????????????????????????????????????? | | ??????????????????????????????????????? | | ??????????????????????????????????????? | | ??????????????????????????????????????? | | ??????????????????????????????????????? | | ??????????????????????????????????????? | | ??????????????????????????????????????? | | ???????????????????? ??????????????? | | ??????????????????? ??????????????? | | ??????????????????? ??????????????? | | ??????????????????? [!??????????????? | | ??????????????????? [!??????????????? | | ???????????????????# [!??????????????? | | ???????????????????# ??????????????? | | ???????????????????# ??????????????? | | ???????????????????# ??????????????? | | ???????????????????# #??????????????? | | ???????????????????# ####???????????? | | ???????????????????# ########???????? | | ???????????????????# # #???????? | | ???????????????????# # ! #???????? | | ???????????????????# %#% #???????? | | ???????????????????# %+%@ #???????? | | ???????????????????# #l #???????? | | ???????????????????# # #???????? | | ???????????????##### ########???????? | | ????????????##### ## ###########????? | | ????????????# # %#* % % #????? | | ????????????# " % # #% #????? | | ????????????# %+ / ! #????? | | ????????????# "" %# # #????? | | ????????????# #* ###########????? | | ????????????# # %# !#?????? | | ????????????######## # """ #?????? | | ???????????????????# # """ #?????? | | ??????????????????## #% """ #?????? | | ??????????????????## %+ #?????? | | ??????????????????## # """ #?????? | | ??????????????????## % #[ """ #?????? | | ??????????????????## # """ #?????? | | ??????????????????## # #?????? | | ??????????????????## ##########?????? | | ??????????????????#T #??????????????? | | ??????????########## #??????????????? | | ??????????# # #??????????????? | | ??????????# """ # #??????????????? | | ??????????# """ # #####??????????? | +----------------------------------------------------+ Best States ------------- Heat Dissipation 31 Energy Generation 21 Energy Capacity 325 Matter Stores 300 Matter Capacity 300 Sight Range 16 Robot Scan Range 30 Terrain Scan Density 10 ECM Strength 1 Evasion (%) 50 Targeting Accuracy 8 Item Schematics ----------------- None Robot Schematics ------------------ None Fabricated ------------ Nothing Alien Tech Used ----------------- None Achievements -------------- None Challenges ------------ None Game ------ Seed GatlingInsulationPropulsion Manual? 0 Play Time 00:34:19 Cumulative 96.5 hours Start 2020.10.16 @ 17:02:05 End 2020.10.16 @ 17:51:22 Sessions 1 Manual Loads 0 Difficulty Rogue Special Mode None Game No. 77 Rogue 77 Adventurer 0 Explorer 0 Win Type - Total 0 Types 0/0/0/0/0/0/0/0/0 Lore% 34 Gallery% 37 Achievement% 28 Wizard Run 0 Options --------- ASCII 0 Keyboard 0 Movement Arrows Keybinds 0 Fullscreen 1 Font 18/SmallcapsGlow Map View 76x50 Tactical HUD 1 Map Filters NONE Filters NONE Steam 1 RUN: 4b874994-aac7-4b8c-a5f2-b40f5b9b39dd